[Event "19th Rochefort Chess Festival - Masters"]
[Site "Rochefort, France"]
[Date "2020.02.24"]
[Round "4.5"]
[White "Suarez Uriel, Adrian"]
[Black "Korneev, Oleg"]
[Result "0-1"]
[TimeControl "1h30/40 - 30' + [30'']"]
[WhiteElo "2371"]
[BlackElo "2505"]

1. e4 {[%clk 01:30:57]} {[%emt 00:00:02]} c5 {[%clk 01:26:28]} {[%emt
00:04:30]} 2. Nf3 {[%clk 01:31:23]} {[%emt 00:00:07]} Nc6 {[%clk 01:26:51]}
{[%emt 00:00:08]} 3. Nc3 {[%clk 01:29:36]} {[%emt 00:02:17]} e6 {[%clk
01:24:02]} {[%emt 00:03:19]} 4. d4 {[%clk 01:30:00]} {[%emt 00:00:05]} cxd4
{[%clk 01:24:31]} {[%emt 00:00:03]} 5. Nxd4 {[%clk 01:30:24]} {[%emt 00:00:06]}
Qc7 {[%clk 01:24:54]} {[%emt 00:00:07]} 6. Be3 {[%clk 01:30:49]} {[%emt
00:00:05]} a6 {[%clk 01:25:07]} {[%emt 00:00:17]} 7. Qf3 {[%clk 01:31:14]}
{[%emt 00:00:05]} Bd6 {[%clk 01:24:16]} {[%emt 00:01:21]} 8. O-O-O {[%clk
01:30:33]} {[%emt 00:01:11]} Be5 {[%clk 01:24:24]} {[%emt 00:00:22]} 9. g3
{[%clk 01:30:59]} {[%emt 00:00:05]} Nge7 {[%clk 01:22:46]} {[%emt 00:02:07]} 10.
Qg4 {[%clk 01:25:14]} {[%emt 00:06:15]} O-O {[%clk 01:19:52]} {[%emt 00:03:24]}
11. f4 {[%clk 01:24:54]} {[%emt 00:00:50]} Bxd4 {[%clk 01:20:10]} {[%emt
00:00:13]} 12. Bxd4 {[%clk 01:25:20]} {[%emt 00:00:04]} Nxd4 {[%clk 00:47:00]}
{[%emt 00:33:39]} 13. Rxd4 {[%clk 01:25:44]} {[%emt 00:00:05]} d5 {[%clk
00:47:29]} {[%emt 00:00:02]} 14. e5 {[%clk 01:08:32]} {[%emt 00:17:42]} b5
{[%clk 00:45:42]} {[%emt 00:02:17]} 15. h4 {[%clk 00:58:39]} {[%emt 00:10:23]}
Nf5 {[%clk 00:44:51]} {[%emt 00:01:21]} 16. Rd2 {[%clk 00:57:46]} {[%emt
00:01:23]} b4 {[%clk 00:37:43]} {[%emt 00:07:38]} 17. Nb1 {[%clk 00:53:44]}
{[%emt 00:04:31]} a5 {[%clk 00:35:40]} {[%emt 00:02:34]} 18. h5 {[%clk
00:53:13]} {[%emt 00:01:01]} h6 {[%clk 00:35:10]} {[%emt 00:01:00]} 19. Bd3
{[%clk 00:44:43]} {[%emt 00:09:00]} a4 {[%clk 00:35:23]} {[%emt 00:00:17]} 20.
Bxf5 {[%clk 00:40:22]} {[%emt 00:04:51]} exf5 {[%clk 00:35:06]} {[%emt
00:00:47]} 21. Qf3 {[%clk 00:40:49]} {[%emt 00:00:02]} Be6 {[%clk 00:34:17]}
{[%emt 00:01:19]} 22. a3 {[%clk 00:40:03]} {[%emt 00:01:16]} Rab8 {[%clk
00:32:42]} {[%emt 00:02:04]} 23. Rd4 {[%clk 00:34:28]} {[%emt 00:06:05]} bxa3
{[%clk 00:25:58]} {[%emt 00:07:14]} 24. Qxa3 {[%clk 00:33:22]} {[%emt
00:01:36]} Rb3 {[%clk 00:25:45]} {[%emt 00:00:42]} 25. Qd6 {[%clk 00:28:31]}
{[%emt 00:05:20]} Qa7 {[%clk 00:25:29]} {[%emt 00:00:47]} 26. Rhd1 {[%clk
00:23:54]} {[%emt 00:05:07]} Rxg3 {[%clk 00:24:17]} {[%emt 00:01:42]} 27. Qb4
{[%clk 00:21:29]} {[%emt 00:02:55]} Ra8 {[%clk 00:22:23]} {[%emt 00:02:24]} 28.
Qe1 {[%clk 00:12:46]} {[%emt 00:09:13]} a3 {[%clk 00:19:07]} {[%emt 00:03:46]}
29. Nxa3 {[%clk 00:12:42]} {[%emt 00:00:33]} Rxa3 {[%clk 00:19:35]} {[%emt
00:00:02]} 30. bxa3 {[%clk 00:13:09]} {[%emt 00:00:04]} Qxa3+ {[%clk 00:20:01]}
{[%emt 00:00:04]} 31. Kd2 {[%clk 00:13:30]} {[%emt 00:00:08]} Rc8 {[%clk
00:20:21]} {[%emt 00:00:11]} 32. Qg1 {[%clk 00:10:24]} {[%emt 00:03:36]} Qf3
{[%clk 00:14:18]} {[%emt 00:06:33]} 33. Qh2 {[%clk 00:09:19]} {[%emt 00:01:35]}
Qc3+ {[%clk 00:14:25]} {[%emt 00:00:23]} 34. Ke2 {[%clk 00:09:46]} {[%emt
00:00:03]} Qxc2+ {[%clk 00:13:59]} {[%emt 00:00:56]} 35. R1d2 {[%clk 00:10:15]}
{[%emt 00:00:01]} Qb1 {[%clk 00:13:22]} {[%emt 00:01:07]} 36. Kf2 {[%clk
00:08:49]} {[%emt 00:01:55]} Rc1 {[%clk 00:13:29]} {[%emt 00:00:24]} 37. Qg2
{[%clk 00:09:14]} {[%emt 00:00:05]} Rh1 {[%clk 00:13:14]} {[%emt 00:00:45]} 38.
Re2 {[%clk 00:08:04]} {[%emt 00:01:40]} Rxh5 {[%clk 00:11:58]} {[%emt
00:01:46]} 39. Qg1 {[%clk 00:02:52]} {[%emt 00:05:42]} Qb6 {[%clk 00:11:59]}
{[%emt 00:00:28]} 40. Kg3 {[%clk 00:03:19]} {[%emt 00:00:03]} Kh7 {[%clk
00:02:37]} {[%emt 00:09:51]} 41. Qe3 {[%clk 00:02:04]} {[%emt 00:01:45]} Rh1
{[%clk 00:01:13]} {[%emt 00:01:55]} 42. Rd3 {[%clk 00:27:27]} {[%emt 00:05:07]}
Qb1 {[%clk 00:29:05]} {[%emt 00:02:38]} 43. Rg2 {[%clk 00:26:38]} {[%emt
00:01:19]} h5 {[%clk 00:23:16]} {[%emt 00:06:19]} 44. Qe2 {[%clk 00:23:06]}
{[%emt 00:04:02]} h4+ {[%clk 00:13:10]} {[%emt 00:10:36]} 45. Kf2 {[%clk
00:23:34]} g6 {[%clk 00:13:12]} {[%emt 00:00:28]} 46. Rg5 {[%clk 00:17:28]}
{[%emt 00:06:36]} Kg7 {[%clk 00:12:51]} {[%emt 00:00:51]} 47. Rd2 {[%clk
00:15:35]} {[%emt 00:02:23]} Rh2+ {[%clk 00:12:03]} {[%emt 00:01:18]} 48. Rg2
{[%clk 00:16:03]} {[%emt 00:00:02]} Qb6+ {[%clk 00:12:26]} {[%emt 00:00:08]}
0-1

[Event "19th Rochefort Chess Festival - Masters"]
[Site "Rochefort, France"]
[Date "2020.02.24"]
[Round "4.4"]
[White "Maiorov, Nikita"]
[Black "Besson, Bastien"]
[Result "1-0"]
[TimeControl "1h30/40 - 30' + [30'']"]
[WhiteElo "2506"]
[BlackElo "2181"]

1. d4 {[%clk 01:24:49]} {[%emt 00:06:09]} d6 {[%clk 01:30:25]} {[%emt
00:00:36]} 2. c4 {[%clk 01:25:02]} {[%emt 00:00:17]} g6 {[%clk 01:30:22]}
{[%emt 00:00:33]} 3. Nf3 {[%clk 01:25:25]} {[%emt 00:00:06]} Bg7 {[%clk
01:30:47]} {[%emt 00:00:06]} 4. Nc3 {[%clk 01:25:50]} {[%emt 00:00:06]} Nd7
{[%clk 01:29:29]} {[%emt 00:01:47]} 5. g3 {[%clk 01:24:41]} {[%emt 00:01:39]}
Ngf6 {[%clk 01:27:55]} {[%emt 00:02:04]} 6. Bg2 {[%clk 01:25:05]} {[%emt
00:00:06]} O-O {[%clk 01:28:20]} {[%emt 00:00:05]} 7. O-O {[%clk 01:25:31]}
{[%emt 00:00:03]} e5 {[%clk 01:28:39]} {[%emt 00:00:12]} 8. e4 {[%clk
01:25:58]} {[%emt 00:00:03]} a6 {[%clk 01:28:21]} {[%emt 00:00:48]} 9. Qc2
{[%clk 01:25:54]} {[%emt 00:00:33]} exd4 {[%clk 01:28:09]} {[%emt 00:00:43]} 10.
Nxd4 {[%clk 01:26:20]} {[%emt 00:00:03]} Re8 {[%clk 01:28:26]} {[%emt
00:00:13]} 11. Rd1 {[%clk 01:26:35]} {[%emt 00:00:15]} Rb8 {[%clk 01:28:05]}
{[%emt 00:00:52]} 12. a4 {[%clk 01:26:21]} {[%emt 00:00:44]} Ne5 {[%clk
01:21:06]} {[%emt 00:07:28]} 13. Qe2 {[%clk 01:14:31]} {[%emt 00:12:20]} c5
{[%clk 01:19:01]} {[%emt 00:02:36]} 14. Nc2 {[%clk 01:14:56]} {[%emt 00:00:04]}
Bg4 {[%clk 01:14:38]} {[%emt 00:04:53]} 15. f3 {[%clk 01:12:27]} {[%emt
00:03:00]} Be6 {[%clk 01:15:03]} {[%emt 00:00:05]} 16. b3 {[%clk 01:12:47]}
{[%emt 00:00:11]} Nc6 {[%clk 01:11:34]} {[%emt 00:03:59]} 17. Rb1 {[%clk
00:58:47]} {[%emt 00:14:30]} Nd7 {[%clk 00:57:54]} {[%emt 00:14:10]} 18. Qe1
{[%clk 00:55:42]} {[%emt 00:03:34]} Qe7 {[%clk 00:45:23]} {[%emt 00:13:01]} 19.
Be3 {[%clk 00:41:35]} {[%emt 00:14:37]} Nde5 {[%clk 00:37:19]} {[%emt
00:08:34]} 20. Nd5 {[%clk 00:41:14]} {[%emt 00:00:51]} Qf8 {[%clk 00:33:38]}
{[%emt 00:04:10]} 21. Qd2 {[%clk 00:32:43]} {[%emt 00:09:02]} Red8 {[%clk
00:31:34]} {[%emt 00:02:34]} 22. Kh1 {[%clk 00:32:06]} {[%emt 00:01:07]} h5
{[%clk 00:29:57]} {[%emt 00:02:07]} 23. f4 {[%clk 00:26:22]} {[%emt 00:06:14]}
Ng4 {[%clk 00:29:30]} {[%emt 00:00:57]} 24. Bg1 {[%clk 00:26:34]} {[%emt
00:00:19]} h4 {[%clk 00:27:39]} {[%emt 00:02:22]} 25. gxh4 {[%clk 00:26:39]}
{[%emt 00:00:25]} Bxd5 {[%clk 00:26:49]} {[%emt 00:01:20]} 26. cxd5 {[%clk
00:24:38]} {[%emt 00:02:30]} Nd4 {[%clk 00:19:16]} {[%emt 00:08:04]} 27. h3
{[%clk 00:21:00]} {[%emt 00:04:08]} Nf6 {[%clk 00:19:26]} {[%emt 00:00:19]} 28.
Nxd4 {[%clk 00:18:53]} {[%emt 00:02:38]} cxd4 {[%clk 00:19:53]} {[%emt
00:00:03]} 29. Bf3 {[%clk 00:18:07]} {[%emt 00:01:16]} Qe7 {[%clk 00:19:45]}
{[%emt 00:00:38]} 30. Qg2 {[%clk 00:16:03]} {[%emt 00:02:34]} Kh7 {[%clk
00:15:37]} {[%emt 00:04:37]} 31. Rxd4 {[%clk 00:14:41]} {[%emt 00:01:53]} Nh5
{[%clk 00:14:42]} {[%emt 00:01:25]} 32. Bxh5 {[%clk 00:14:32]} {[%emt
00:00:40]} gxh5 {[%clk 00:15:09]} {[%emt 00:00:03]} 33. Rd3 {[%clk 00:12:03]}
{[%emt 00:02:59]} Bh6 {[%clk 00:12:44]} {[%emt 00:02:55]} 34. e5 {[%clk
00:11:41]} {[%emt 00:00:53]} Qxh4 {[%clk 00:11:48]} {[%emt 00:01:25]} 35. Qe4+
{[%clk 00:11:13]} {[%emt 00:00:58]} Kh8 {[%clk 00:12:05]} {[%emt 00:00:13]} 36.
e6 {[%clk 00:10:28]} {[%emt 00:01:16]} Bg7 {[%clk 00:08:07]} {[%emt 00:04:27]}
37. Qf3 {[%clk 00:08:03]} {[%emt 00:02:54]} fxe6 {[%clk 00:06:40]} {[%emt
00:01:58]} 38. dxe6 {[%clk 00:08:30]} {[%emt 00:00:03]} Rf8 {[%clk 00:06:37]}
{[%emt 00:00:34]} 39. f5 {[%clk 00:07:04]} {[%emt 00:01:56]} Rbe8 {[%clk
00:05:18]} {[%emt 00:01:49]} 40. Re3 {[%clk 00:04:21]} {[%emt 00:03:13]} Qg5
{[%clk 00:04:02]} {[%emt 00:01:45]} 41. Rf1 {[%clk 00:03:14]} {[%emt 00:01:36]}
Be5 {[%clk 00:19:21]} {[%emt 00:15:11]} 42. Re4 {[%clk 00:28:25]} {[%emt
00:05:19]} Re7 {[%clk 00:16:21]} {[%emt 00:03:31]} 43. Rxe5 {[%clk 00:24:48]}
{[%emt 00:04:07]} dxe5 {[%clk 00:16:27]} {[%emt 00:00:24]} 44. Bc5 {[%clk
00:25:16]} {[%emt 00:00:03]} Ree8 {[%clk 00:10:27]} {[%emt 00:06:30]} 45. Bxf8
{[%clk 00:25:26]} {[%emt 00:00:20]} Rxf8 {[%clk 00:10:49]} {[%emt 00:00:07]} 46.
f6 {[%clk 00:24:09]} {[%emt 00:01:46]} 1-0



[ePGN "0.1;DGT LiveChess/2.2.5"]

[Event "19th Rochefort Chess Festival - Masters"]
[Site "Rochefort, France"]
[Date "2020.02.25"]
[Round "5.2"]
[White "Korneev, Oleg"]
[Black "Maiorov, Nikita"]
[Result "1/2-1/2"]
[TimeControl "1h30/40 - 30' + [30'']"]
[WhiteElo "2505"]
[BlackElo "2506"]

1. e4 {[%clk 01:22:35]} {[%emt 00:08:23]} e5 {[%clk 01:30:57]} {[%emt
00:00:04]} 2. Nf3 {[%clk 01:22:52]} {[%emt 00:00:13]} Nc6 {[%clk 01:31:23]}
{[%emt 00:00:04]} 3. Bb5 {[%clk 01:23:19]} {[%emt 00:00:03]} a6 {[%clk
01:31:49]} {[%emt 00:00:04]} 4. Ba4 {[%clk 01:23:47]} {[%emt 00:00:02]} Nf6
{[%clk 01:32:14]} {[%emt 00:00:04]} 5. O-O {[%clk 01:24:13]} {[%emt 00:00:04]}
Be7 {[%clk 01:32:42]} {[%emt 00:00:03]} 6. Re1 {[%clk 01:24:39]} {[%emt
00:00:03]} b5 {[%clk 01:33:08]} {[%emt 00:00:04]} 7. Bb3 {[%clk 01:25:07]}
{[%emt 00:00:03]} d6 {[%clk 01:33:35]} {[%emt 00:00:03]} 8. c3 {[%clk
01:25:34]} {[%emt 00:00:03]} O-O {[%clk 01:34:01]} {[%emt 00:00:04]} 9. d4
{[%clk 01:26:02]} {[%emt 00:00:02]} Bg4 {[%clk 01:34:25]} {[%emt 00:00:06]} 10.
Be3 {[%clk 01:26:29]} {[%emt 00:00:03]} exd4 {[%clk 01:33:47]} {[%emt
00:01:08]} 11. cxd4 {[%clk 01:22:23]} {[%emt 00:04:36]} Na5 {[%clk 01:34:12]}
{[%emt 00:00:05]} 12. Bc2 {[%clk 01:22:51]} {[%emt 00:00:02]} Nc4 {[%clk
01:34:36]} {[%emt 00:00:05]} 13. Bc1 {[%clk 01:23:18]} {[%emt 00:00:04]} c5
{[%clk 01:34:54]} {[%emt 00:00:12]} 14. b3 {[%clk 01:23:36]} {[%emt 00:00:12]}
Nb6 {[%clk 01:34:13]} {[%emt 00:01:10]} 15. Nbd2 {[%clk 01:23:42]} {[%emt
00:00:24]} Rc8 {[%clk 01:27:13]} {[%emt 00:07:30]} 16. h3 {[%clk 01:23:40]}
{[%emt 00:00:32]} Bh5 {[%clk 01:27:39]} {[%emt 00:00:05]} 17. Bb2 {[%clk
01:15:12]} {[%emt 00:08:58]} Nfd7 {[%clk 01:22:31]} {[%emt 00:05:38]} 18. a4
{[%clk 01:12:32]} {[%emt 00:03:10]} bxa4 {[%clk 01:21:01]} {[%emt 00:01:59]} 19.
bxa4 {[%clk 01:11:51]} {[%emt 00:01:11]} cxd4 {[%clk 01:20:30]} {[%emt
00:01:01]} 20. g4 {[%clk 00:40:21]} {[%emt 00:32:00]} Bg6 {[%clk 01:20:26]}
{[%emt 00:00:34]} 21. a5 {[%clk 00:34:23]} {[%emt 00:06:28]} Nd5 {[%clk
00:57:30]} {[%emt 00:23:25]} 22. exd5 {[%clk 00:32:40]} {[%emt 00:02:13]} Bxc2
{[%clk 00:57:06]} {[%emt 00:00:54]} 23. Qe2 {[%clk 00:33:06]} {[%emt 00:00:05]}
Bf6 {[%clk 00:56:16]} {[%emt 00:01:19]} 24. Bxd4 {[%clk 00:32:47]} {[%emt
00:00:49]} Nc5 {[%clk 00:50:50]} {[%emt 00:05:56]} 25. Ra3 {[%clk 00:18:02]}
{[%emt 00:15:16]} 1/2-1/2

[Event "19th Rochefort Chess Festival - Masters"]
[Site "Rochefort, France"]
[Date "2020.02.25"]
[Round "5.5"]
[White "Jeet, Jain"]
[Black "Martin Duque, Jesus"]
[Result "1-0"]
[TimeControl "1h30/40 - 30' + [30'']"]
[WhiteElo "2223"]
[BlackElo "2446"]

1. e4 {[%clk 01:30:58]} e5 {[%clk 01:28:11]} {[%emt 00:02:37]} 2. Nf3 {[%clk
01:30:56]} {[%emt 00:00:45]} Nc6 {[%clk 01:28:39]} {[%emt 00:00:02]} 3. Bc4
{[%clk 01:29:22]} {[%emt 00:02:03]} Nf6 {[%clk 01:29:04]} {[%emt 00:00:05]} 4.
d3 {[%clk 01:28:30]} {[%emt 00:01:23]} h6 {[%clk 01:29:26]} {[%emt 00:00:08]} 5.
O-O {[%clk 01:28:07]} {[%emt 00:00:54]} d6 {[%clk 01:29:50]} {[%emt 00:00:05]}
6. c3 {[%clk 01:28:21]} {[%emt 00:00:17]} g5 {[%clk 01:30:14]} {[%emt
00:00:05]} 7. Re1 {[%clk 01:28:35]} {[%emt 00:00:17]} g4 {[%clk 01:28:23]}
{[%emt 00:02:21]} 8. Nfd2 {[%clk 01:29:03]} {[%emt 00:00:02]} h5 {[%clk
01:28:22]} {[%emt 00:00:30]} 9. Nf1 {[%clk 01:28:47]} {[%emt 00:00:47]} h4
{[%clk 01:22:59]} {[%emt 00:05:53]} 10. d4 {[%clk 01:27:31]} {[%emt 00:01:46]}
Rh5 {[%clk 01:09:49]} {[%emt 00:13:39]} 11. Na3 {[%clk 01:26:41]} {[%emt
00:01:21]} Qe7 {[%clk 01:06:53]} {[%emt 00:03:26]} 12. d5 {[%clk 01:22:42]}
{[%emt 00:04:30]} Nb8 {[%clk 01:05:28]} {[%emt 00:01:55]} 13. Bd3 {[%clk
01:21:41]} {[%emt 00:01:30]} Nbd7 {[%clk 00:55:46]} {[%emt 00:10:12]} 14. Qa4
{[%clk 01:16:40]} {[%emt 00:05:31]} Kd8 {[%clk 00:54:36]} {[%emt 00:01:39]} 15.
b4 {[%clk 01:15:37]} {[%emt 00:01:33]} Bh6 {[%clk 00:48:01]} {[%emt 00:07:04]}
16. Nc2 {[%clk 01:08:47]} {[%emt 00:07:21]} Nf8 {[%clk 00:40:58]} {[%emt
00:07:32]} 17. Nce3 {[%clk 01:01:00]} {[%emt 00:08:16]} N8h7 {[%clk 00:35:36]}
{[%emt 00:05:53]} 18. Nf5 {[%clk 00:51:44]} {[%emt 00:09:46]} Bxf5 {[%clk
00:34:41]} {[%emt 00:01:24]} 19. exf5 {[%clk 00:51:31]} {[%emt 00:00:44]} Bxc1
{[%clk 00:31:07]} {[%emt 00:04:04]} 20. Raxc1 {[%clk 00:52:00]} Ng5 {[%clk
00:28:52]} {[%emt 00:02:44]} 21. Be2 {[%clk 00:52:20]} {[%emt 00:00:10]} Rh8
{[%clk 00:24:32]} {[%emt 00:04:50]} 22. Qd1 {[%clk 00:51:57]} {[%emt 00:00:54]}
a5 {[%clk 00:21:03]} {[%emt 00:03:59]} 23. a3 {[%clk 00:44:49]} {[%emt
00:07:39]} axb4 {[%clk 00:18:56]} {[%emt 00:02:37]} 24. axb4 {[%clk 00:45:13]}
{[%emt 00:00:06]} g3 {[%clk 00:18:22]} {[%emt 00:01:03]} 25. fxg3 {[%clk
00:42:15]} {[%emt 00:03:28]} hxg3 {[%clk 00:18:12]} {[%emt 00:00:40]} 26. Nxg3
{[%clk 00:42:37]} {[%emt 00:00:08]} Qf8 {[%clk 00:18:04]} {[%emt 00:00:37]} 27.
Qd3 {[%clk 00:37:12]} {[%emt 00:05:56]} Qh6 {[%clk 00:17:41]} {[%emt 00:00:53]}
28. Nf1 {[%clk 00:37:06]} {[%emt 00:00:36]} Rg8 {[%clk 00:16:12]} {[%emt
00:01:59]} 29. Ng3 {[%clk 00:36:44]} {[%emt 00:00:53]} Rh8 {[%clk 00:15:27]}
{[%emt 00:01:16]} 30. Nf1 {[%clk 00:36:37]} {[%emt 00:00:36]} Ke7 {[%clk
00:15:29]} {[%emt 00:00:28]} 31. Qc4 {[%clk 00:35:39]} {[%emt 00:01:29]} Rac8
{[%clk 00:13:08]} {[%emt 00:02:51]} 32. Ra1 {[%clk 00:34:02]} {[%emt 00:02:06]}
Nh3+ {[%clk 00:09:49]} {[%emt 00:03:48]} 33. Kh1 {[%clk 00:25:21]} {[%emt
00:09:12]} Nf2+ {[%clk 00:10:14]} {[%emt 00:00:05]} 34. Kg1 {[%clk 00:25:47]}
{[%emt 00:00:03]} Nh3+ {[%clk 00:10:40]} {[%emt 00:00:04]} 35. Kh1 {[%clk
00:26:15]} {[%emt 00:00:03]} Nf4 {[%clk 00:11:06]} {[%emt 00:00:04]} 36. Bf3
{[%clk 00:25:45]} {[%emt 00:01:00]} Qg5 {[%clk 00:07:15]} {[%emt 00:04:21]} 37.
Ra7 {[%clk 00:24:13]} {[%emt 00:02:02]} Ng4 {[%clk 00:07:08]} {[%emt 00:00:36]}
38. Bxg4 {[%clk 00:21:17]} {[%emt 00:03:26]} Qxg4 {[%clk 00:07:37]} 39. Ra2
{[%clk 00:21:32]} {[%emt 00:00:15]} Qxf5 {[%clk 00:07:07]} {[%emt 00:01:01]} 40.
Rf2 {[%clk 00:21:46]} {[%emt 00:00:16]} Rh4 {[%clk 00:02:40]} {[%emt 00:04:57]}
41. g3 {[%clk 00:16:48]} {[%emt 00:05:28]} Qd3 {[%clk 00:28:32]} {[%emt
00:04:38]} 42. Qa2 {[%clk 00:39:37]} {[%emt 00:07:41]} Rg4 {[%clk 00:15:51]}
{[%emt 00:13:11]} 43. Rxf4 {[%clk 00:30:49]} {[%emt 00:09:18]} Rxf4 {[%clk
00:13:54]} {[%emt 00:02:27]} 44. gxf4 {[%clk 00:31:16]} {[%emt 00:00:01]} Qxc3
{[%clk 00:13:44]} {[%emt 00:00:41]} 45. Qe2 {[%clk 00:29:37]} {[%emt 00:02:09]}
f6 {[%clk 00:14:01]} {[%emt 00:00:13]} 46. fxe5 {[%clk 00:28:24]} {[%emt
00:01:44]} dxe5 {[%clk 00:14:30]} {[%emt 00:00:01]} 47. Qe4 {[%clk 00:27:27]}
{[%emt 00:01:26]} Ra8 {[%clk 00:13:36]} {[%emt 00:01:24]} 48. Ng3 {[%clk
00:27:40]} {[%emt 00:00:17]} Kd6 {[%clk 00:12:05]} {[%emt 00:02:01]} 49. Re2
{[%clk 00:24:40]} {[%emt 00:03:30]} Ra1+ {[%clk 00:11:31]} {[%emt 00:01:05]} 50.
Kg2 {[%clk 00:25:02]} {[%emt 00:00:07]} Qc1 {[%clk 00:11:50]} {[%emt 00:00:11]}
51. Qf3 {[%clk 00:24:17]} {[%emt 00:01:15]} Qg1+ {[%clk 00:11:47]} {[%emt
00:00:32]} 52. Kh3 {[%clk 00:24:45]} {[%emt 00:00:03]} Ke7 {[%clk 00:11:49]}
{[%emt 00:00:28]} 53. Rf2 {[%clk 00:24:20]} {[%emt 00:00:54]} Ra6 {[%clk
00:12:08]} {[%emt 00:00:12]} 54. d6+ {[%clk 00:23:34]} {[%emt 00:01:17]} 1-0

[Event "19th Rochefort Chess Festival - Masters"]
[Site "Rochefort, France"]
[Date "2020.02.25"]
[Round "5.1"]
[White "Van Den Doel, Erik"]
[Black "Gareyev, Timur"]
[Result "1-0"]
[TimeControl "1h30/40 - 30' + [30'']"]
[WhiteElo "2583"]
[BlackElo "2607"]

1. e4 {[%clk 01:27:18]} {[%emt 00:03:41]} e5 {[%clk 01:29:18]} {[%emt
00:01:42]} 2. Nf3 {[%clk 01:27:42]} {[%emt 00:00:05]} Nc6 {[%clk 01:29:45]}
{[%emt 00:00:04]} 3. Nc3 {[%clk 01:28:09]} {[%emt 00:00:03]} Nf6 {[%clk
01:29:23]} {[%emt 00:00:51]} 4. d4 {[%clk 01:28:34]} {[%emt 00:00:05]} exd4
{[%clk 01:28:20]} {[%emt 00:01:34]} 5. Nxd4 {[%clk 01:28:47]} {[%emt 00:00:17]}
Bc5 {[%clk 01:25:49]} {[%emt 00:03:01]} 6. Be3 {[%clk 01:27:14]} {[%emt
00:02:03]} Bb6 {[%clk 01:26:11]} {[%emt 00:00:08]} 7. Qd2 {[%clk 01:26:53]}
{[%emt 00:00:52]} O-O {[%clk 01:19:31]} {[%emt 00:07:11]} 8. O-O-O {[%clk
01:26:31]} {[%emt 00:00:51]} d6 {[%clk 01:19:35]} {[%emt 00:00:25]} 9. f3
{[%clk 01:18:19]} {[%emt 00:08:42]} Be6 {[%clk 01:19:50]} {[%emt 00:00:15]} 10.
g4 {[%clk 01:14:26]} {[%emt 00:04:23]} Nd7 {[%clk 01:18:42]} {[%emt 00:01:38]}
11. h4 {[%clk 00:56:44]} {[%emt 00:18:12]} Nde5 {[%clk 01:04:53]} {[%emt
00:14:19]} 12. Be2 {[%clk 00:56:35]} {[%emt 00:00:39]} Nxd4 {[%clk 01:05:09]}
{[%emt 00:00:14]} 13. Bxd4 {[%clk 00:56:59]} {[%emt 00:00:05]} Nc6 {[%clk
01:05:31]} {[%emt 00:00:09]} 14. Bxb6 {[%clk 00:54:13]} {[%emt 00:03:16]} axb6
{[%clk 01:04:55]} {[%emt 00:01:05]} 15. a3 {[%clk 00:54:33]} {[%emt 00:00:12]}
Ra5 {[%clk 00:51:09]} {[%emt 00:14:16]} 16. f4 {[%clk 00:44:16]} {[%emt
00:10:47]} f6 {[%clk 00:49:38]} {[%emt 00:02:01]} 17. g5 {[%clk 00:40:17]}
{[%emt 00:04:29]} f5 {[%clk 00:49:33]} {[%emt 00:00:35]} 18. exf5 {[%clk
00:40:09]} {[%emt 00:00:38]} Bxf5 {[%clk 00:49:27]} {[%emt 00:00:36]} 19. Bc4+
{[%clk 00:37:05]} {[%emt 00:03:33]} Kh8 {[%clk 00:49:55]} {[%emt 00:00:02]} 20.
h5 {[%clk 00:37:03]} {[%emt 00:00:33]} Qd7 {[%clk 00:44:30]} {[%emt 00:05:55]}
21. h6 {[%clk 00:36:18]} {[%emt 00:01:15]} Rd8 {[%clk 00:15:11]} {[%emt
00:29:49]} 22. Rde1 {[%clk 00:27:18]} {[%emt 00:09:30]} b5 {[%clk 00:13:23]}
{[%emt 00:02:18]} 23. Bxb5 {[%clk 00:25:13]} {[%emt 00:02:35]} Qf7 {[%clk
00:13:34]} {[%emt 00:00:19]} 24. Qe3 {[%clk 00:18:14]} {[%emt 00:07:29]} Rf8
{[%clk 00:12:58]} {[%emt 00:01:05]} 25. Bxc6 {[%clk 00:12:07]} {[%emt
00:06:38]} bxc6 {[%clk 00:13:26]} {[%emt 00:00:02]} 26. Qe7 {[%clk 00:12:28]}
{[%emt 00:00:09]} Raa8 {[%clk 00:13:09]} {[%emt 00:00:47]} 27. hxg7+ {[%clk
00:10:55]} {[%emt 00:02:03]} Kxg7 {[%clk 00:12:38]} {[%emt 00:01:01]} 28. Rh6
{[%clk 00:08:18]} {[%emt 00:03:07]} Bg6 {[%clk 00:06:12]} {[%emt 00:06:56]} 29.
f5 {[%clk 00:07:51]} {[%emt 00:00:58]} Bxf5 {[%clk 00:06:40]} {[%emt 00:00:01]}
30. Rf6 {[%clk 00:08:08]} {[%emt 00:00:13]} Qxe7 {[%clk 00:07:08]} {[%emt
00:00:02]} 31. Rxe7+ {[%clk 00:08:32]} {[%emt 00:00:06]} Kg8 {[%clk 00:07:00]}
{[%emt 00:00:38]} 32. Rxf8+ {[%clk 00:08:11]} {[%emt 00:00:51]} Rxf8 {[%clk
00:03:32]} {[%emt 00:03:58]} 33. Rxc7 {[%clk 00:08:37]} {[%emt 00:00:04]} Rc8
{[%clk 00:04:00]} {[%emt 00:00:02]} 34. Rxc8+ {[%clk 00:07:05]} {[%emt
00:02:02]} Bxc8 {[%clk 00:04:29]} {[%emt 00:00:01]} 35. Kd2 {[%clk 00:06:51]}
{[%emt 00:00:44]} Kf7 {[%clk 00:04:56]} {[%emt 00:00:02]} 36. Ke3 {[%clk
00:06:23]} {[%emt 00:00:59]} Bf5 {[%clk 00:05:24]} {[%emt 00:00:02]} 37. a4
{[%clk 00:05:58]} {[%emt 00:00:55]} Ke6 {[%clk 00:05:53]} 38. a5 {[%clk
00:06:04]} {[%emt 00:00:24]} Kd7 {[%clk 00:06:22]} 39. Ne4 {[%clk 00:05:24]}
{[%emt 00:01:10]} Kc7 {[%clk 00:06:13]} {[%emt 00:00:38]} 40. c3 {[%clk
00:04:04]} {[%emt 00:01:50]} c5 {[%clk 00:06:37]} {[%emt 00:00:06]} 41. b4
{[%clk 00:03:31]} {[%emt 00:01:03]} cxb4 {[%clk 00:05:17]} {[%emt 00:01:50]}
1-0